[Event "Szansa Chess Open 2022"]
[Site "Warsaw"]
[Date "2022.09.18"]
[Round "9.16"]
[White "Slomczewski, Michal"]
[Black "Khamidov, Abdulla"]
[Result "0-1"]
[ECO "A00"]
[WhiteElo "2108"]
[BlackElo "1804"]
[Annotator "TA"]
[PlyCount "64"]
[EventDate "2022.09.17"]
[EventCountry "POL"]
[SourceTitle "playchess.com"]
[Source "ChessBase"]
[SourceQuality "1"]
[TimeControl "900+10"]

{[%evp 9,64,23,14,0,12,-6,67,44,70,69,69,71,117,99,103,104,128,98,135,36,44,28,62,52,66,15,22,22,27,-2,12,0,143,89,31,-85,-62,-143,-121,-798,-804,-1324,-1459,-1432,-1463,-1457,-1451,-1597,-1602,-1417,-1367,-1265,-1180,-29989,-29990,-29990,-29991]} 1. Nc3 {[%emt 0:00:01]} Nf6 {[%emt 0:00:03]} 2. e4 {[%emt 0:00:09]} d6 {[%emt 0:00:09]} 3. d4 {[%emt 0:00:28]} Nbd7 {[%emt 0:00:01]} 4. Be3 {[%emt 0:00:07]} e5 {[%emt 0:00:02]} 5. f3 {[%emt 0:00:07]} Be7 {[%emt 0:00:02]} 6. Bc4 {[%emt 0:00:19] B07: Pirc Defence: Miscellaneous Systems.} c6 {[%emt 0:00:08]} 7. d5 {[%emt 0:01:36] [#]} c5 $146 {[%emt 0:00:25]} (7... O-O $11) ({Predecessor:} 7... O-O 8. a4 Nb6 9. Bb3 cxd5 10. exd5 Nh5 11. Nge2 f5 12. Qd2 Bd7 13. a5 Nc8 {1-0 (59) Wheeler,D (2260)-Klingher,D (2054) England 2017}) 8. Be2 {[%emt 0:01:09] White is slightly better.} Nh5 {[%emt 0:00:14]} 9. Nh3 {[%emt 0:00:11]} Ndf6 {[%emt 0:01:07]} 10. g4 {[%emt 0:00:13]} g6 {[%emt 0:00:02]} (10... Ng8 $142) 11. Qd2 {[%emt 0:02:00]} Ng7 {[%emt 0:00:12]} 12. O-O-O {[%emt 0:00:18]} h5 {[%emt 0:00:12][%cal Rh5g4]} 13. Nf2 {[%emt 0:00:07]} hxg4 {[%emt 0:00:08]} 14. f4 {[%emt 0:00:36]} ({Much less strong is} 14. Nxg4 $6 Bd7 $14) (14. fxg4 $16 {h4 is the strong threat.} a6 15. h4) 14... exf4 $1 $14 {[%emt 0:00:33]} 15. Bxf4 {[%emt 0:00:02]} Nfh5 {[%emt 0:00:01]} 16. Be3 {[%emt 0:01:02]} ({Don't blunder} 16. Nxg4 $2 Nxf4 17. Ne3 (17. Qxf4 $2 Bg5 $19) 17... Rh4 $19) 16... f5 {[%emt 0:00:01]} 17. Kb1 {[%emt 0:03:41]} ({White should play} 17. exf5 $1 $14 gxf5 18. Kb1) 17... Bd7 $11 {[%emt 0:00:45]} 18. exf5 {[%emt 0:02:40]} (18. Rhg1 {seems wilder.} Bf6 19. Nb5 Qb6 20. a4) 18... gxf5 {[%emt 0:00:02]} 19. Nd3 {[%emt 0:00:03]} Qc7 {[%emt 0:02:25]} 20. Bg5 {[%emt 0:01:07][%mdl 1024] White has compensation.} Nf6 {[%emt 0:00:28]} (20... Bxg5 $11 21. Qxg5 Kf7) 21. Qe3 {[%emt 0:00:01]} (21. Nf4 $142) 21... Rh3 $16 {[%emt 0:00:58]} 22. Qf2 {[#]} (22. Qd2 $14 {stays ahead.}) 22... O-O-O $1 $17 {[%emt 0:00:05]} 23. Nf4 {[%emt 0:01:15]} ({Better is} 23. Bf1 $15 Rh5 24. Bd2) 23... Rxc3 $1 {[%emt 0:00:09]} 24. Bxf6 {[%emt 0:00:43][%mdl 8192] White does not recover from this.} (24. bxc3 $2 {perishes.} Ne4 25. Qe3 Bxg5 $19) (24. Ng6 $17 Ne4 25. Nxe7+ Kb8 26. Qf4) 24... Bxf6 $19 {[%emt 0:00:01]} 25. bxc3 {[%emt 0:00:30]} Qb6+ {[%emt 0:00:01]} 26. Kc1 {[%emt 0:00:07]} Bxc3 {[%csl Gc3][%cal Rb6b2] [#] This bishop pair is nice.} 27. Nd3 {[%emt 0:00:17] Against Qb2+} Qa5 {[%emt 0:00:02]} 28. Rdf1 {[%emt 0:00:33]} Qxa2 {[%emt 0:00:16][%cal Ra2a1]} 29. Kd1 {[%emt 0:00:04]} Ba4 {[%emt 0:00:13][%csl Ga4][%cal Ra2c2]} 30. Bxg4 {[%emt 0:00:22]} fxg4 {[%emt 0:00:06]} 31. Nc1 {[%emt 0:00:01]} Qxd5+ {[%emt 0:00:06]} 32. Nd3 {[%emt 0:00:02]} Qxd3+ {[%emt 0:00:01] Weighted Error Value: White=0.91/Black=0.20 (precise)} 0-1

[Event "Szansa Chess Open 2022"]
[Site "Warsaw"]
[Date "2022.09.18"]
[Round "9.17"]
[White "Janeczko, Jakub"]
[Black "Rekuc, Patryk"]
[Result "1-0"]
[ECO "B20"]
[WhiteElo "2159"]
[BlackElo "1777"]
[Annotator "TA"]
[PlyCount "169"]
[EventDate "2022.09.17"]
[EventCountry "POL"]
[SourceTitle "playchess.com"]
[Source "ChessBase"]
[SourceQuality "1"]
[TimeControl "900+10"]

{[%evp 19,169,13,27,0,13,7,17,0,25,0,25,14,45,-9,39,7,78,66,70,27,26,0,182,195,187,183,168,139,194,179,177,109,101,108,104,45,43,49,41,39,101,101,97,68,56,73,114,50,66,0,0,5,7,0,85,64,60,65,320,322,430,399,378,197,198,186,183,161,168,168,178,193,179,125,347,365,346,351,333,343,278,235,430,356,350,339,513,507,451,428,420,127,185,42,58,27,48,19,53,16,12,-16,-16,-185,-185,-178,0,0,0,-557,-552,-468,-460,-629,-574,-462,-565,-490,-469,-401,0,0,0,0,0,0,0,0,0,0,0,0,0,0,0,0,253,0,0,0,0,13,12842,12837,12844,12842,12842,12843,12843,12843,12850,12850]} 1. e4 {[%emt 0:00:02]} c5 {[%emt 0:00:02]} 2. d3 {[%emt 0:00:01]} d6 {[%emt 0:00:03]} 3. g3 {[%emt 0:00:02]} g6 {[%emt 0:00:02]} 4. Bg2 {[%emt 0:00:01]} Bg7 {[%emt 0:00:01]} 5. f4 {[%emt 0:00:03]} Nc6 {[%emt 0:00:02]} 6. Nf3 {[%emt 0:00:02]} e6 {[%emt 0:00:07]} 7. O-O {[%emt 0:00:02]} Nge7 {[%emt 0:00:01]} 8. c3 {[%emt 0:00:02]} O-O {[%emt 0:00:04]} 9. Be3 {[%emt 0:00:02]} b6 {[%emt 0:00:08]} 10. Na3 {[%emt 0:00:02]} Bb7 {[%emt 0:00:02]} 11. Nc2 {[%emt 0:00:02] B20: Sicilian: Unusual White 2nd moves.} Rc8 {[%emt 0:00:13]} 12. Bf2 {[%emt 0:00:06]} Qd7 {[%emt 0:00:38] [#]} 13. Qe2 $146 {[%emt 0:00:02] The position is equal.} ({Predecessor:} 13. Re1 Rfe8 14. Qd2 h6 15. Rad1 f5 16. exf5 gxf5 17. d4 c4 18. Ne3 Nd8 19. Qe2 {1-0 (60) Kuzmicz,K (2469)-Peng,L (2498) Warsaw 2021}) 13... Rfd8 {[%emt 0:00:03]} 14. Rae1 {[%emt 0:00:24]} b5 {[%emt 0:01:15]} 15. d4 {[%emt 0:00:02]} cxd4 {[%emt 0:00:07]} 16. cxd4 {[%emt 0:00:01]} (16. Nfxd4 $14 Nxd4 17. Bxd4 (17. Nxd4 a6 $14)) 16... Na5 {[%emt 0:00:08]} (16... b4 $11) 17. b3 {[%emt 0:00:32]} Qc6 {[%emt 0:00:34]} (17... f5 $11) 18. Nb4 {[%emt 0:00:31]} Qc3 {[%emt 0:00:09]} 19. Nd3 {[%emt 0:00:02]} Qc2 {[%emt 0:00:17]} 20. Nd2 {[%emt 0:01:16]} Rc3 $2 {[%emt 0:01:38]} (20... Qxa2 $2 21. Ra1 Qc2 22. Rxa5 $18) (20... Nac6 $11 21. Nf3 Qxe2 22. Rxe2 a5) 21. Nb4 $1 $18 {[%emt 0:00:26][%csl LRb5,LRc2]} Qb2 {[%emt 0:00:01]} 22. Qxb5 {[%emt 0:05:01]} Qxd2 {[%emt 0:01:36]} 23. Qxa5 {[%emt 0:03:01]} Rcc8 {[%emt 0:00:34]} (23... Rdc8 $16 {was worth a try.}) 24. Rd1 {[%emt 0:00:45]} Qc3 {[%emt 0:00:03]} 25. Rd3 {[%emt 0:00:37]} (25. d5 $1 $18) 25... Qc7 $16 {[%emt 0:01:21]} 26. Qxc7 {[%emt 0:00:05] White is more active.} (26. Qxa7 $2 Ra8 27. Rc3 Qxc3 $19) 26... Rxc7 {[%emt 0:00:01]} 27. Rd2 {[%emt 0:00:08]} ({Better is} 27. d5 $1 $16) 27... Rdc8 $14 {[%emt 0:00:12]} 28. e5 {[%emt 0:00:48]} Bxg2 {[%emt 0:00:16]} 29. Kxg2 {[%emt 0:00:02]} d5 {[%emt 0:00:04]} (29... dxe5 $14 30. dxe5 Bf8) 30. Na6 $16 {[%emt 0:00:31]} Rc2 31. Rfd1 {[%emt 0:00:02]} Rxd2 {[%emt 0:00:58]} 32. Rxd2 {[%emt 0:00:01]} Rc1 {[%emt 0:00:02]} 33. b4 {[%emt 0:01:48]} (33. Nb4 $16) 33... Nc6 {[%emt 0:00:22]} 34. Kf3 {[%emt 0:01:04]} ({White should try} 34. Rd3 $14) 34... Bf8 $11 {[%emt 0:00:04]} 35. b5 {[%emt 0:00:45]} Na5 {[%emt 0:00:03]} 36. a4 {[%emt 0:00:24]} Rc4 {[%emt 0:01:27]} (36... Ra1 $11) 37. Nc5 {[%emt 0:00:06]} Rc3+ {[%emt 0:01:11]} 38. Rd3 {[%emt 0:00:12]} Rxd3+ {[%emt 0:00:30][%mdl 8192]} (38... Rc1 $14) 39. Nxd3 $14 {[%emt 0:00:02][%mdl 4096] Endgame KBN-KBN} Nc4 {[%emt 0:00:02]} 40. Ke2 {[%emt 0:00:38]} Be7 {[%emt 0:00:02]} 41. Kd1 {[%emt 0:00:10]} (41. Be1 $142) 41... Kf8 $18 {[%emt 0:00:20]} 42. Kc2 {[%emt 0:00:03]} Ke8 {[%emt 0:00:02]} 43. Be1 {[%emt 0:00:13]} Kd7 {[%emt 0:00:25]} 44. Kb3 {[%emt 0:00:03]} Kc7 {[%emt 0:00:08]} 45. Bb4 {[%emt 0:00:15]} Bd8 {[%emt 0:00:17]} 46. Nb2 {[%emt 0:00:59]} (46. a5 $18) 46... Ne3 $2 (46... Nxb2 $16 47. Kxb2 Kb7) 47. Ba5+ {[%emt 0:00:48]} Kc8 {[%emt 0:00:16]} 48. Bxd8 {[%emt 0:00:16]} Kxd8 {[%emt 0:00:01] KN-KN} 49. Kb4 {[%emt 0:00:03]} Kc7 {[%emt 0:00:29]} 50. a5 {[%emt 0:00:22]} h6 $2 {[%emt 0:00:48]} (50... g5 {keeps fighting.} 51. fxg5 Nf1) 51. Na4 {[%emt 0:00:05]} Nc4 {[%emt 0:00:16]} 52. Nc5 {[%emt 0:00:12]} Kc8 {[%emt 0:00:04]} (52... Nd2 $142 53. g4 h5) 53. Nb3 {[%emt 0:00:20]} Kb7 {[%emt 0:00:33]} 54. Kc5 {[%emt 0:00:01]} Kc7 {[%emt 0:00:01]} 55. a6 $2 {[%emt 0:00:27]} (55. g4 $18) 55... Nb2 {[%emt 0:00:02]} (55... h5 $16 {is a better defense.} 56. Kb4 Kb6) 56. b6+ {[%emt 0:00:14]} (56. Kb4 $1 $18) 56... axb6+ $14 {[%emt 0:00:02]} 57. Kb5 {[%emt 0:00:01]} Nc4 {[%emt 0:00:15]} 58. Nc1 $1 {[%emt 0:00:21] Strongly threatening a7.} Na3+ {[%emt 0:00:03]} 59. Ka4 {[%emt 0:00:08]} Nc2 {[%emt 0:00:03]} 60. Nb3 {[%emt 0:00:09]} Kc6 {[%emt 0:00:01]} 61. a7 $2 {[%emt 0:00:01]} (61. h3 $11 {and White stays safe.}) 61... Kb7 $19 {[%emt 0:00:01]} 62. Kb5 {[%emt 0:00:01]} Kxa7 $2 {[%emt 0:00:03]} (62... Na3+ $1 $19 63. Kb4 Nb1) 63. Kc6 $11 {[%emt 0:00:01]} Ka6 {[%emt 0:00:04]} 64. Kd7 $2 {[%emt 0:00:01][%mdl 8192]} (64. g4 $1 $11 {and White has nothing to worry.}) 64... Kb5 $19 {[%emt 0:00:01]} 65. Ke7 {[%emt 0:00:01]} Kc4 {[%emt 0:00:03]} 66. Nc1 {[%emt 0:00:02]} Nxd4 {[%emt 0:00:08]} 67. Kxf7 {[%emt 0:00:01]} b5 $1 {[%emt 0:00:02] White must now prevent ...b4.} 68. Kxg6 {[%emt 0:00:06]} b4 {[%emt 0:00:09] Hoping for ...b3.} 69. g4 {[%emt 0:00:02] [#]} Nf3 $2 {[%emt 0:00:24]} (69... b3 $1 $19 {[%cal Rb3b2] ...b2 is the strong threat.} 70. Nxb3 Nxb3 71. Kxh6 Nd4) 70. Kf6 $11 {[%emt 0:00:14]} b3 {[%emt 0:00:05]} (70... Nd4 $2 71. g5 hxg5 72. fxg5 $18) 71. Nxb3 $1 {[%emt 0:00:08]} Kxb3 {[%emt 0:00:01] KN-KP} 72. f5 {[%emt 0:00:03]} d4 {[%emt 0:03:03] And now ...Ng5 would win.} (72... Nxh2 $2 73. fxe6 (73. Kxe6 d4 $11) 73... Nxg4+ 74. Kg7 $18) 73. fxe6 {[%emt 0:00:02] Threatens to win with e7.} d3 {[%emt 0:00:01]} 74. e7 {[%emt 0:00:02]} d2 {[%emt 0:00:01]} 75. e8=Q {[%emt 0:00:01]} d1=Q {[%emt 0:00:03]} 76. Qb5+ {[%emt 0:00:19]} Ka3 {[%emt 0:00:20]} 77. Qc5+ {[%emt 0:00:27]} Kb2 $2 {[%emt 0:00:08][%mdl 8192] [#]} (77... Ka4 $11 {and Black is okay.}) 78. Qb4+ $2 {[%emt 0:00:06]} (78. e6 $1 $18 {[%cal Re6e7]} Ng5 79. Qe5+ Kb3 80. e7 (80. Qb5+ Ka3 $14) 80... Qf1+ 81. Qf5 Ne4+ 82. Ke5 Qa1+ 83. Kxe4 Qe1+ 84. Kf3 Qf1+ 85. Kg3 Qe1+ 86. Kf4 Qxe7 87. Qd5+ Ka3 88. Qa5+ Kb3 89. Qb6+ Kc2 90. Qxh6) 78... Ka2 $1 {[%emt 0:00:07]} (78... Qb3 $2 79. Qxb3+ Kxb3 80. e6 $18) 79. e6 {[%emt 0:00:06]} Qa1+ {[%emt 0:00:24]} 80. Kg6 {[%emt 0:00:38] The board is on fire.} Ne5+ $2 {[%emt 0:00:40][%mdl 8192]} (80... Qe5 $11) 81. Kf5 {[%emt 0:00:07] White is clearly winning.} Qg1 {[%emt 0:01:06]} 82. Qa5+ {[%emt 0:00:20]} Kb3 {[%emt 0:00:03]} 83. Qxe5 {[%emt 0:00:03]} Qf2+ {[%emt 0:00:05]} 84. Kg6 {[%emt 0:00:06]} Qh4 {[%emt 0:00:03]} 85. Qg3+ {[%emt 0:00:05] What a fight!  Weighted Error Value: White=0.31/Black=0.38} 1-0

[Event "Szansa Chess Open 2022"]
[Site "Warsaw"]
[Date "2022.09.18"]
[Round "9.18"]
[White "Fiszer, Bartosz"]
[Black "Podgorski, Maciej"]
[Result "1-0"]
[ECO "C67"]
[WhiteElo "2232"]
[BlackElo "2059"]
[Annotator "TA"]
[PlyCount "73"]
[EventDate "2022.09.17"]
[EventCountry "POL"]
[SourceTitle "playchess.com"]
[Source "ChessBase"]
[SourceQuality "1"]
[TimeControl "900+10"]

{[%evp 18,73,24,10,14,19,19,15,20,10,8,5,33,23,14,1,5,0,0,0,0,0,0,0,12,0,10,11,7,7,15,10,19,18,31,24,48,0,247,248,372,355,660,640,813,854,1678,1675,1671,1502,6173,5314,12835,12835,12835,12833,12834,12653]} 1. e4 {[%emt 0:00:01]} e5 {[%emt 0:00:03]} 2. Nf3 {[%emt 0:00:01]} Nc6 {[%emt 0:00:02]} 3. Bb5 {[%emt 0:00:02]} Nf6 {[%emt 0:00:01]} 4. O-O {[%emt 0:00:03][%cal Bh1f1,Bf1e1,Be1e5][%mdl 32]} Nxe4 {[%emt 0:00:02]} 5. Re1 {[%emt 0:00:03]} Nd6 {[%emt 0:00:02]} 6. Nxe5 {[%emt 0:00:02]} Nxe5 {[%emt 0:00:03]} 7. Rxe5+ {[%emt 0:00:02]} Be7 {[%emt 0:00:01]} 8. Bf1 {[%emt 0:00:04]} O-O {[%emt 0:00:02]} 9. d4 {[%emt 0:00:02]} Bf6 {[%emt 0:00:01]} 10. Re1 {[%emt 0:00:03]} Re8 {[%emt 0:00:01] C67: Ruy Lopez: Berlin Defence: 4 0-0 Nxe4.} 11. c3 {[%emt 0:00:05]} Rxe1 {[%emt 0:00:06]} 12. Qxe1 {[%emt 0:00:03]} Ne8 {[%emt 0:00:01] The position is equal.} 13. Nd2 {[%emt 0:00:20]} d5 {[%emt 0:00:03]} 14. Nf3 {[%emt 0:00:02]} g6 {[%emt 0:00:01]} 15. Bf4 {[%emt 0:00:10]} Ng7 {[%emt 0:00:07] [#]} 16. Be5 $146 {[%emt 0:00:37]} ({Predecessor:} 16. Qd2 c6 17. Re1 Bf5 18. Bh6 Qd6 19. Bf4 Qf8 20. h3 Re8 21. Ne5 Bd8 22. Nd3 {½-½ (22) Santos Ruiz,M (2597)-Kryvoruchko,Y (2683) Germany 2022}) 16... Bxe5 {[%emt 0:00:17]} 17. Qxe5 {[%emt 0:00:03]} Bg4 {[%emt 0:01:11]} 18. Qf4 {[%emt 0:00:44]} Bxf3 {[%emt 0:00:20]} 19. Qxf3 {[%emt 0:00:02]} c6 {[%emt 0:00:16]} 20. Re1 {[%emt 0:00:31][%cal Ba1e1,Be1e3,Be3e7,Be7b7][%mdl 32]} Ne6 {[%emt 0:00:29]} 21. g3 {[%emt 0:01:49]} Kg7 {[%emt 0:02:30]} 22. Re3 {[%emt 0:02:29]} Qf6 {[%emt 0:00:17]} 23. Qe2 {[%emt 0:00:03]} h5 {[%emt 0:01:22]} 24. Bh3 {[%emt 0:01:22][%cal Rh3e6]} (24. Rf3 $5 {[%cal Rf3f6]} Qe7 25. Bh3 $14) 24... Ng5 {[%emt 0:00:14]} 25. Bg2 {[%emt 0:00:36]} Rd8 {[%emt 0:02:16]} 26. Re7 {[%emt 0:01:27]} Rd6 {[%emt 0:00:11]} 27. Qe5 {[%emt 0:02:13]} (27. Rxb7 $14 Re6 28. Qd1) 27... Qxe5 $2 {[%emt 0:00:14] [#]} (27... Re6 $11 {and Black stays safe.} 28. Qxf6+ Kxf6 29. Rxb7 Re1+ 30. Bf1 Rd1) 28. dxe5 $11 {[%emt 0:00:02][%mdl 4096] Endgame KRB-KRN} Re6 {[%emt 0:00:01]} (28... Rd8 $142 29. Rxb7 a5) 29. Rxb7 $18 {[%emt 0:00:02]} c5 $2 {[%emt 0:03:57]} (29... Re8 30. f4 Ne6 31. Rxa7 h4) 30. f4 {[%emt 0:01:06] White is clearly winning.} Ne4 {[%emt 0:00:51]} 31. c4 {[%emt 0:00:15]} Rb6 {[%emt 0:01:36]} 32. Rxb6 {[%emt 0:00:02]} axb6 {[%emt 0:00:01]} 33. Bxe4 {[%emt 0:00:04]} dxe4 {[%emt 0:00:05]} 34. Kf2 {[%emt 0:00:06]} f5 {[%emt 0:00:01]} 35. exf6+ {[%emt 0:00:02]} Kxf6 {[%emt 0:00:02]} 36. Ke3 {[%emt 0:00:02]} Kf5 {[%emt 0:00:30]} 37. h3 {[%emt 0:00:02] Weighted Error Value: White=0.07 (flawless) /Black=0.53} 1-0

[Event "Szansa Chess Open 2022"]
[Site "Warsaw"]
[Date "2022.09.18"]
[Round "9.19"]
[White "Goraj, Barbara"]
[Black "Tsiapko, Andrii"]
[Result "1-0"]
[ECO "B36"]
[WhiteElo "2121"]
[BlackElo "1590"]
[Annotator "TA"]
[PlyCount "145"]
[EventDate "2022.09.17"]
[EventCountry "POL"]
[SourceTitle "playchess.com"]
[Source "ChessBase"]
[SourceQuality "1"]
[TimeControl "900+10"]

{[%evp 17,145,48,89,52,80,26,29,26,72,73,102,76,127,115,114,103,114,114,148,99,150,102,114,46,119,66,67,66,65,72,135,18,48,24,109,0,133,36,661,652,638,397,392,260,235,42,34,35,22,25,176,135,185,178,179,164,162,103,197,195,247,237,325,317,431,171,191,72,72,72,80,67,68,54,102,0,0,0,0,0,0,0,745,243,734,563,1115,606,12825,12822,12827,12829,12829,12830,12829,12830,12847,12838,12841,12839,12841,12841,12850,12850,12850,27999,27999,27999,27999,27999,27999,27999,27999,27999,27999,27999,27999,27999,27999,27999,27999,27999,27999,27999,27999,27999,27999,27999,27999,27999]} 1. e4 {[%emt 0:00:03]} c5 {[%emt 0:00:01]} 2. Nf3 {[%emt 0:00:02]} Nc6 {[%emt 0:00:02]} 3. d4 {[%emt 0:00:01]} cxd4 {[%emt 0:00:01]} 4. Nxd4 {[%emt 0:00:02]} g6 {[%emt 0:00:04]} 5. c4 {[%emt 0:00:01]} Nf6 {[%emt 0:00:26][%cal Bg8f6,Bf6d7,Bd7c5,Bc5e4][%mdl 32]} 6. Nc3 {[%emt 0:00:03]} d6 {[%emt 0:00:22]} 7. Be2 {[%emt 0:00:11]} Bg7 {[%emt 0:00:06]} 8. Be3 {[%emt 0:00:05]} O-O {[%emt 0:00:31]} 9. O-O {[%emt 0:00:07]} a5 {[%emt 0:00:58]} 10. f3 {[%emt 0:00:59][%cal Bf2f3,Bf3f4,Bf4f5][%mdl 32] B38: Sicilian: Maroczy Bind with 5...Bg7 and 7...0-0.} Nd7 {[%emt 0:01:17]} 11. Nd5 {[%emt 0:00:33] Prevents Qb6.} (11. Ndb5 $16) 11... Nc5 $11 {[%emt 0:00:44]} 12. Qd2 {[%emt 0:02:50] White has an edge.} Be6 {[%emt 0:03:00]} (12... Nxd4 $11 {was preferrable.} 13. Bxd4 Bxd4+ 14. Qxd4 e5) 13. Nb5 $16 {[%emt 0:02:35] [#]} Bxd5 $146 {[%emt 0:03:47]} ({Predecessor:} 13... Rc8 14. Rad1 b6 15. b3 f5 16. exf5 Rxf5 17. f4 Rf7 18. Nd4 Bd7 19. Bf3 e6 {1-0 (44) Scharrer,P (2269)-Castell Cantero,S (2095) Calvia 2011}) 14. exd5 {[%emt 0:00:02]} (14. Qxd5 $6 Bxb2 15. Rab1 Bg7 $11) 14... Ne5 {[%emt 0:00:28]} (14... Nb4 $142) 15. f4 {[%emt 0:00:29]} Ned7 {[%emt 0:00:25]} 16. f5 {[%emt 0:01:12] White is more active.} Ne4 {[%emt 0:00:53]} 17. Qc2 {[%emt 0:00:11]} Ndc5 {[%emt 0:00:07]} 18. Rab1 {[%emt 0:01:07]} (18. Rf4 $142) 18... Qd7 {[%emt 0:01:06]} (18... Be5 $142) 19. g4 {[%emt 0:01:53]} (19. Bg4 $142 $1) 19... Rac8 {[%emt 0:02:03]} 20. Kh1 {[%emt 0:00:25]} (20. Rbd1 $16) 20... Kh8 {[%emt 0:01:15]} ({Black should try} 20... e6 $1 $14) 21. Rf3 {[%emt 0:00:38]} (21. fxg6 $16 hxg6 22. Bf3) 21... gxf5 $14 {[%emt 0:00:22]} 22. Rxf5 {[%emt 0:02:25]} e6 $1 {[%emt 0:00:27]} 23. Rh5 {[%emt 0:00:01] Hoping for Bxc5.} f5 {[%emt 0:00:18]} ({Black should play} 23... exd5 24. Rxd5 (24. cxd5 f5 $14) 24... Qe6) 24. gxf5 {[%emt 0:00:59]} (24. dxe6 $16 Qxe6 25. Nd4 Ng3+ 26. hxg3 Qxe3 27. Nxf5 Qe4+ 28. Qxe4 Nxe4 29. Kg2) 24... exf5 {[%emt 0:00:07]} 25. Rf1 {[%emt 0:00:09]} Rce8 {[%emt 0:00:09]} (25... Be5 $11) 26. Bd4 {[%emt 0:01:11]} (26. Bg1 $1 $16) 26... f4 {[%emt 0:00:09]} (26... Qe7 $11 {keeps the balance.}) 27. Bf3 {[%emt 0:00:09] This bishop pair is nice.} (27. Bxc5 $16 dxc5 28. Bf3) 27... Qf7 $2 {[%emt 0:00:18][%mdl 8192] [#]} (27... Bxd4 $14 28. Nxd4 Rg8) 28. Nxd6 $1 $18 {[%emt 0:01:06][%mdl 512]} Qg6 {[%emt 0:00:04]} 29. Bxg7+ {[%emt 0:00:03]} (29. Bxc5 $2 Ng3+ $1 {[%mdl 512]} 30. hxg3 Qxc2 31. Nxe8 Rxe8 $19) 29... Kxg7 {[%emt 0:00:17]} 30. Nxe4 {[%emt 0:00:23] Really sharp!} Nxe4 {[%emt 0:00:04]} 31. Qg2 {[%emt 0:00:08] Inhibits Ng3+.} (31. Qd1 $1 $18) 31... Qxg2+ $14 {[%emt 0:00:15]} 32. Kxg2 {[%emt 0:00:02] Strongly threatening Rd1.} Nd2 {[%emt 0:00:07][%csl LRc4,LRf1]} 33. Rc1 {[%emt 0:00:14]} Nxf3 $2 {[%emt 0:00:14]} (33... Re3 $11 {and Black has nothing to worry.} 34. Rh3 Kf6) 34. Kxf3 $11 {[%emt 0:00:02][%mdl 4096] Endgame KRR-KRR} Re3+ {[%emt 0:00:03]} 35. Kf2 {[%emt 0:00:02]} Rd3 {[%emt 0:00:14]} 36. Re5 {[%emt 0:00:17]} f3 {[%emt 0:00:13]} 37. Rc2 {[%emt 0:00:00] Prevents Rd2+.} (37. Re7+ $18 Rf7 38. Rxf7+ Kxf7 39. Rc3 Rd2+ 40. Kxf3) 37... Rd4 {[%emt 0:00:07]} (37... Rc8 $16) 38. Re3 $18 {[%emt 0:00:28]} Rdf4 {[%emt 0:00:13]} (38... Rh4 {keeps fighting.} 39. Kf1 b6) 39. d6 {[%emt 0:00:14]} Rd4 {[%emt 0:00:11]} 40. c5 {[%emt 0:00:02]} (40. Rxf3 Rxd6 41. Rxf8 Kxf8 $16) 40... b6 {[%emt 0:00:08]} 41. Rxf3 $2 {[%emt 0:00:20]} (41. cxb6 Rxd6 42. Rc7+ (42. Rxf3 Rxf3+ 43. Kxf3 Rxb6 $16) 42... Kh6 43. b7 (43. Rxf3 Rxf3+ 44. Kxf3 Rxb6 $16) 43... Rd2+ 44. Kf1) 41... bxc5 {[%emt 0:00:05]} 42. Rxf8 {[%emt 0:00:11]} (42. Rxc5 $18 {and the rest is easy.} Rxd6 43. Rg5+ (43. Rxa5 Rd2+ 44. Ke3 Rxb2 $16) 43... Kh6 44. Rxa5 (44. Rxf8 Kxg5 45. Ke3 a4 $16)) 42... Kxf8 $16 {[%emt 0:00:03]} 43. Rxc5 {[%emt 0:00:10]} Rxd6 $18 {[%emt 0:00:17] KR-KR} 44. Rf5+ {[%emt 0:00:13]} Ke7 {[%emt 0:00:06]} 45. Ke3 {[%emt 0:00:06] Inhibits Rd2.} a4 {[%emt 0:00:19]} (45... Rb6 $1 $14) 46. a3 {[%emt 0:00:14]} (46. Rf2 $16) 46... Rb6 $11 {[%emt 0:00:09]} 47. Rf2 {[%emt 0:00:01]} Ke6 {[%emt 0:00:06]} 48. Kd4 {[%emt 0:00:01]} Rb3 {[%emt 0:00:12]} 49. h4 {[%emt 0:00:25]} Rh3 $2 {[%emt 0:00:12][%mdl 8192] White leaves nothing to chance now.} (49... h6 $11) 50. Rf4 $1 $18 {[%emt 0:00:02] And now Kc5 would win.} Rb3 $2 {[%emt 0:00:10] [#]} (50... Kd6 51. Rf6+ Kd7) 51. Kc5 $1 {[%emt 0:00:04]} Rxb2 {[%emt 0:00:10]} 52. Rxa4 {[%emt 0:00:07]} Rc2+ {[%emt 0:00:09]} 53. Rc4 {[%emt 0:00:05]} Ra2 {[%emt 0:00:08]} 54. a4 {[%emt 0:00:01][%cal Ba3a4,Ba4a5][%mdl 32]} Kd7 {[%emt 0:00:03] [#]} 55. Kb5 $1 {[%emt 0:00:05]} Rb2+ {[%emt 0:00:21]} 56. Rb4 {[%emt 0:00:05]} Ra2 {[%emt 0:00:02]} 57. Kb6 {[%emt 0:00:03]} Kc8 {[%emt 0:00:04]} 58. a5 {[%emt 0:00:02]} Kb8 {[%emt 0:00:03]} 59. Ka6+ {[%emt 0:00:11]} Kc7 {[%emt 0:00:29]} 60. Rb7+ {[%emt 0:00:07]} Kc8 {[%emt 0:00:02]} 61. Rxh7 {[%emt 0:00:03]} Re2 {[%emt 0:00:14] White mates.} 62. Rh6 {[%emt 0:00:45]} Kb8 {[%emt 0:00:08]} 63. Rg6 {[%emt 0:00:24]} Rh2 {[%emt 0:00:06]} 64. Rg4 {[%emt 0:00:05]} Rh1 {[%emt 0:00:05]} 65. Rb4+ {[%emt 0:00:13]} Ka8 {[%emt 0:00:21]} 66. Kb6 {[%emt 0:00:04]} Kb8 {[%emt 0:00:13]} 67. Rg4 {[%emt 0:00:30]} Rb1+ {[%emt 0:00:04]} 68. Kc6 {[%emt 0:00:07]} Ka7 {[%emt 0:00:19]} 69. Rg5 {[%emt 0:00:17]} Rh1 {[%emt 0:00:11]} 70. h5 {[%emt 0:00:02]} Ka6 {[%emt 0:00:10]} 71. Kd6 {[%emt 0:00:01]} Kb7 {[%emt 0:00:09]} 72. Ke6 {[%emt 0:00:04]} Rf1 {[%emt 0:00:07]} 73. Rf5 {[%emt 0:00:02] Weighted Error Value: White=0.54/Black=0.51} 1-0